fUSD/lending_fUSD_20260629
["ID","MTS","AMOUNT","RATE_DAILY","PERIOD"]
[426690901,1782745850000,-189.0,0.00035341,11]
[426690873,1782745850000,-2303.63313041,0.00035,30]
[426690877,1782745850000,-1251.1385,0.00035,2]
[426690872,1782745850000,-1734.01008843,0.00035,30]
[426690874,1782745850000,-282.0,0.00035,30]
[426690875,1782745850000,-1500.0,0.00035,2]
[426690885,1782745850000,-346.36363636,0.00035048,2]
[426690880,1782745850000,-192.27096766,0.00035,120]
[426690879,1782745850000,-216.58458871,0.00035,30]
[426690882,1782745850000,-1500.0,0.00035,2]
[426690891,1782745850000,-5800.0,0.00035133,2]
[426690892,1782745850000,-350.0,0.00035134,37]
[426690881,1782745850000,-1500.0,0.00035,2]
[426690883,1782745850000,-3663.0,0.00035016,10]
[426690876,1782745850000,-1500.0,0.00035,2]
[426690900,1782745850000,-200.0,0.000353,11]
[426690902,1782745850000,-570.14233947,0.000354,7]
[426690907,1782745850000,-256.08254306,0.0003544,2]
[426690899,1782745850000,-163.0,0.0003528,30]
[426690936,1782745850000,-753.44956564,0.00019864,2]
[426690937,1782745850000,-1687.49404321,0.00019864,2]
[426690934,1782745850000,-5504.4695074,0.00019864,2]
[426690935,1782745850000,-1800.79268935,0.00019864,2]
[426690933,1782745850000,-18557.8949595,0.00035531,2]
[426690931,1782745850000,-6187.64401634,0.00035531,2]
[426690932,1782745850000,-17016.55386046,0.00035531,2]
[426690927,1782745850000,-2336.0,0.00035518,11]
[426690926,1782745850000,-800.0,0.000355,7]
[426690929,1782745850000,-189.16850594,0.00035526,60]
[426690925,1782745850000,-151.09934801,0.00035459,2]
[426690930,1782745850000,-373562.47395475,0.00035531,2]
[426690924,1782745850000,-152.5325826,0.00035457,15]
[426690923,1782745850000,-151.0,0.00035455,7]
[426690928,1782745850000,-481661.23557258,0.00035524,2]
[426690922,1782745850000,-151.0,0.00035455,7]
[426690918,1782745850000,-151.0,0.00035455,7]
[426690920,1782745850000,-151.0,0.00035455,7]
[426690908,1782745850000,-193.00493408,0.0003544,2]
[426690911,1782745850000,-69890.74244101,0.00035455,30]
[426690909,1782745850000,-100000.0,0.00035455,90]
[426690910,1782745850000,-37794.80781514,0.00035455,60]
[426690906,1782745850000,-502.0,0.00035415,18]
[426690917,1782745850000,-151.0,0.00035455,7]
[426690914,1782745850000,-151.0,0.00035455,7]
[426690913,1782745850000,-151.0,0.00035455,7]
[426690916,1782745850000,-244.869656,0.00035455,7]
[426690915,1782745850000,-151.0,0.00035455,7]
[426690919,1782745850000,-151.0,0.00035455,7]
[426690921,1782745850000,-151.0,0.00035455,7]
[426690912,1782745850000,-151.0,0.00035455,7]
[426690948,1782745851000,-953.73550408,0.00027397,10]
[426690951,1782745851000,-300.0,0.00033687,2]
[426690944,1782745851000,-339.09151428,0.00024196,2]
[426690946,1782745851000,-1569.06015368,0.00027397,10]
[426690954,1782745851000,-848.03884205,0.00033874,2]
[426690943,1782745851000,-5744.74607422,0.00023966,2]
[426690942,1782745851000,-2075.96424992,0.00023966,2]
[426690941,1782745851000,-311.0,0.00023966,2]
[426690940,1782745851000,-322.79,0.00023966,2]
[426690938,1782745851000,-536.69035953,0.00019864,2]
[426690939,1782745851000,-7515.01858362,0.00023966,2]
[426690949,1782745851000,-446.09705538,0.00033687,2]
[426690953,1782745851000,-51.98115795,0.00033874,2]
[426690947,1782745851000,-3554.35434224,0.00027397,10]
[426690952,1782745851000,-300.0,0.00033687,2]
[426690950,1782745851000,-300.0,0.00033687,2]
[426690945,1782745851000,-560.92848572,0.00024196,2]
[426690968,1782745851000,-783.21,0.0002755,30]
[426690967,1782745851000,-1289.91,0.0002755,30]
[426690964,1782745851000,-1228.31286605,0.00021231,2]
[426690963,1782745851000,-7865.74329908,0.00021231,2]
[426690966,1782745851000,-400.0,0.00026105,2]
[426690962,1782745851000,-1188.84,0.00021231,2]
[426690965,1782745851000,-15969.51890776,0.00025333,2]
[426690959,1782745851000,-133.63992422,0.0002755,30]
[426690961,1782745851000,-14908.97196627,0.00035531,2]
[426690958,1782745851000,-347.81007578,0.0002755,30]
[426690957,1782745851000,-23.5518684,0.00035531,2]
[426690956,1782745851000,-47368.36152889,0.00035531,2]
[426690955,1782745851000,-777.65049133,0.00035531,2]
[426690960,1782745851000,-466.1491651,0.00035531,2]
[426690996,1782745852000,-150.51977728,0.00035531,2]
[426690998,1782745852000,-151.0,0.00035531,7]
[426690999,1782745852000,-151.0,0.00035531,7]
[426690993,1782745852000,-247.34,0.00027794,30]
[426690995,1782745852000,-236.53807036,0.00029108,2]
[426690994,1782745852000,-783.21,0.00028194,7]
[426690991,1782745852000,-247.34,0.00027733,2]
[426691000,1782745852000,-151.0,0.00035531,7]
[426691004,1782745852000,-177.21,0.00035539,2]
[426691002,1782745852000,-300.0,0.00035539,2]
[426691008,1782745852000,-189.16850594,0.00035547,60]
[426691009,1782745852000,-217.91407471,0.00035548,60]
[426691001,1782745852000,-193.98,0.00035532,2]
[426691005,1782745852000,-334.0,0.00035539,7]
[426691003,1782745852000,-300.0,0.00035539,2]
[426691006,1782745852000,-170.0,0.00035539,7]
[426690997,1782745852000,-222392.62495305,0.00035531,2]
[426691011,1782745852000,-150.0,0.00035548,60]
[426691010,1782745852000,-150.0,0.00035548,60]
[426691012,1782745852000,-150.0,0.00035548,60]
[426691007,1782745852000,-1737.06,0.00035539,7]
[426690992,1782745852000,-247.34,0.00027764,7]
[426690981,1782745852000,-481.45,0.00028033,30]
[426690988,1782745852000,-300.0,0.00033687,2]
[426691013,1782745852000,-150.0,0.00035548,60]
[426690969,1782745852000,-247.34,0.00027551,2]
[426690970,1782745852000,-247.34,0.00027581,7]
[426690971,1782745852000,-247.34,0.00027611,30]
[426690974,1782745852000,-247.34,0.00027703,30]
[426690972,1782745852000,-247.34,0.00027642,2]
[426690975,1782745852000,-481.45,0.00027711,7]
[426690973,1782745852000,-247.34,0.00027672,7]
[426690977,1782745852000,-783.21,0.00027711,7]
[426690989,1782745852000,-300.0,0.00033687,2]
[426690976,1782745852000,-1289.91,0.00027711,7]
[426690978,1782745852000,-481.45,0.00027872,2]
[426690979,1782745852000,-1289.91,0.00027872,2]
[426690983,1782745852000,-783.21,0.00028033,30]
[426690984,1782745852000,-481.45,0.00028194,7]
[426690982,1782745852000,-1289.91,0.00028033,30]
[426690986,1782745852000,-216.58458871,0.00029,7]
[426690985,1782745852000,-1289.91,0.00028194,7]
[426690987,1782745852000,-253.722819,0.00030086,14]
[426690990,1782745852000,-12937.04534263,0.00035531,2]
[426690980,1782745852000,-783.21,0.00027872,2]
[426691014,1782745852000,-296.0758621,0.0003555,120]
[426691031,1782745852000,-151.0,0.00035616,30]
[426691018,1782745852000,-209.994157,0.0003555,120]
[426691041,1782745852000,-170.601858,0.00035616,30]
[426691047,1782745852000,-151.0,0.00035616,30]
[426691049,1782745852000,-151.0,0.00035616,30]
[426691046,1782745852000,-163.692961,0.00035616,30]
[426691043,1782745852000,-153.514101,0.00035616,30]
[426691045,1782745852000,-151.0,0.00035616,30]
[426691051,1782745852000,-151.0,0.00035616,30]
[426691044,1782745852000,-191.650377,0.00035616,30]
[426691048,1782745852000,-151.0,0.00035616,30]
[426691042,1782745852000,-151.0,0.00035616,30]
[426691050,1782745852000,-151.0,0.00035616,30]
[426691052,1782745852000,-151.0,0.00035616,30]
[426691054,1782745852000,-151.0,0.00035616,30]
[426691056,1782745852000,-151.0,0.00035616,30]
[426691055,1782745852000,-151.0,0.00035616,30]
[426691058,1782745852000,-151.0,0.00035616,30]
[426691057,1782745852000,-151.0,0.00035616,30]
[426691062,1782745852000,-216.847443,0.00035616,30]
[426691059,1782745852000,-151.0,0.00035616,30]
[426691060,1782745852000,-151.0,0.00035616,30]
[426691053,1782745852000,-151.0,0.00035616,30]
[426691040,1782745852000,-172.473859,0.00035616,30]
[426691015,1782745852000,-372.5023922,0.0003555,120]
[426691038,1782745852000,-151.0,0.00035616,30]
[426691039,1782745852000,-151.0,0.00035616,30]
[426691017,1782745852000,-152.1687274,0.0003555,120]
[426691019,1782745852000,-500.0,0.0003555,120]
[426691020,1782745852000,-500.0,0.0003555,120]
[426691022,1782745852000,-533.2822585,0.0003555,120]
[426691023,1782745852000,-352.8326883,0.0003555,120]
[426691021,1782745852000,-500.0,0.0003555,120]
[426691024,1782745852000,-2336.0,0.00035596,11]
[426691028,1782745852000,-520.16644751,0.00035616,7]
[426691027,1782745852000,-500.0,0.00035616,7]
[426691016,1782745852000,-305.1348986,0.0003555,120]
[426691026,1782745852000,-181.36,0.00035616,2]
[426691029,1782745852000,-151.0,0.00035616,30]
[426691025,1782745852000,-160.0,0.00035596,11]
[426691037,1782745852000,-151.0,0.00035616,30]
[426691033,1782745852000,-151.0,0.00035616,30]
[426691032,1782745852000,-151.0,0.00035616,30]
[426691035,1782745852000,-151.0,0.00035616,30]
[426691036,1782745852000,-151.0,0.00035616,30]
[426691061,1782745852000,-151.0,0.00035616,30]
[426691034,1782745852000,-151.0,0.00035616,30]
[426691030,1782745852000,-213.630021,0.00035616,30]
[426691087,1782745853000,-151.0,0.00035616,30]
[426691103,1782745853000,-442.124274,0.00035616,30]
[426691088,1782745853000,-151.0,0.00035616,30]
[426691086,1782745853000,-151.0,0.00035616,30]
[426691089,1782745853000,-151.0,0.00035616,30]
[426691101,1782745853000,-442.124274,0.00035616,30]
[426691091,1782745853000,-171.15843,0.00035616,30]
[426691102,1782745853000,-442.124274,0.00035616,30]
[426691096,1782745853000,-171.15843,0.00035616,30]
[426691094,1782745853000,-171.15843,0.00035616,30]
[426691092,1782745853000,-171.15843,0.00035616,30]
[426691090,1782745853000,-151.0,0.00035616,30]
[426691098,1782745853000,-171.15843,0.00035616,30]
[426691093,1782745853000,-171.15843,0.00035616,30]
[426691100,1782745853000,-442.124274,0.00035616,30]
[426691097,1782745853000,-171.15843,0.00035616,30]
[426691085,1782745853000,-151.0,0.00035616,30]
[426691095,1782745853000,-171.15843,0.00035616,30]
[426691084,1782745853000,-151.0,0.00035616,30]
[426691074,1782745853000,-151.0,0.00035616,30]
[426691081,1782745853000,-151.0,0.00035616,30]
[426691063,1782745853000,-151.0,0.00035616,30]
[426691066,1782745853000,-151.0,0.00035616,30]
[426691067,1782745853000,-151.0,0.00035616,30]
[426691068,1782745853000,-151.0,0.00035616,30]
[426691065,1782745853000,-247.96011,0.00035616,10]
[426691069,1782745853000,-151.0,0.00035616,30]
[426691064,1782745853000,-151.0,0.00035616,10]
[426691071,1782745853000,-151.0,0.00035616,30]
[426691070,1782745853000,-173.885943,0.00035616,30]
[426691072,1782745853000,-151.0,0.00035616,30]
[426691099,1782745853000,-442.124274,0.00035616,30]
[426691073,1782745853000,-151.0,0.00035616,30]
[426691078,1782745853000,-151.0,0.00035616,30]
[426691075,1782745853000,-208.731268,0.00035616,30]
[426691077,1782745853000,-213.435193,0.00035616,30]
[426691076,1782745853000,-219.061009,0.00035616,30]
[426691079,1782745853000,-182.124657,0.00035616,30]
[426691083,1782745853000,-151.0,0.00035616,30]
[426691082,1782745853000,-151.0,0.00035616,30]
[426691080,1782745853000,-151.0,0.00035616,30]
[426691104,1782745853000,-442.124274,0.00035616,30]
[426691113,1782745853000,-151.0,0.00035616,30]
[426691107,1782745853000,-151.0,0.00035616,30]
[426691116,1782745853000,-151.0,0.00035616,30]
[426691142,1782745853000,-151.09934801,0.00035787,2]
[426691141,1782745853000,-2336.0,0.0003576,11]
[426691130,1782745853000,-151.0,0.00035616,30]
[426691136,1782745853000,-218.495701,0.00035616,30]
[426691139,1782745853000,-150.0,0.00035702,2]
[426691138,1782745853000,-553.77325527,0.00035672,120]
[426691134,1782745853000,-151.0,0.00035616,30]
[426691125,1782745853000,-151.0,0.00035616,30]
[426691132,1782745853000,-151.0,0.00035616,30]
[426691133,1782745853000,-151.0,0.00035616,30]
[426691137,1782745853000,-185.420376,0.00035617,120]
[426691140,1782745853000,-2336.0,0.0003576,11]
[426691144,1782745853000,-345.34,0.00035798,120]
[426691143,1782745853000,-166.66,0.0003579,2]
[426691145,1782745853000,-352.74,0.00035811,3]
[426691147,1782745853000,-28558.70447439,0.0003589,30]
[426691146,1782745853000,-160.0,0.00035864,11]
[426691135,1782745853000,-151.0,0.00035616,30]
[426691124,1782745853000,-151.0,0.00035616,30]
[426691131,1782745853000,-151.0,0.00035616,30]
[426691123,1782745853000,-151.0,0.00035616,30]
[426691105,1782745853000,-442.124274,0.00035616,30]
[426691108,1782745853000,-213.834954,0.00035616,30]
[426691106,1782745853000,-442.124274,0.00035616,30]
[426691110,1782745853000,-151.0,0.00035616,30]
[426691115,1782745853000,-151.0,0.00035616,30]
[426691109,1782745853000,-151.0,0.00035616,30]
[426691122,1782745853000,-151.0,0.00035616,30]
[426691111,1782745853000,-151.0,0.00035616,30]
[426691112,1782745853000,-151.0,0.00035616,30]
[426691114,1782745853000,-151.0,0.00035616,30]
[426691129,1782745853000,-156.897001,0.00035616,30]
[426691119,1782745853000,-151.0,0.00035616,30]
[426691128,1782745853000,-151.0,0.00035616,30]
[426691117,1782745853000,-151.0,0.00035616,30]
[426691120,1782745853000,-151.0,0.00035616,30]
[426691126,1782745853000,-151.0,0.00035616,30]
[426691127,1782745853000,-151.0,0.00035616,30]
[426691118,1782745853000,-151.0,0.00035616,30]
[426691121,1782745853000,-151.0,0.00035616,30]
[426691152,1782746024000,-185.54297888,0.00014394,2]
[426691153,1782746077000,-262.0,0.00014394,2]
[426691154,1782746090000,-24169.09261076,0.00023865,120]
[426691155,1782746102000,-24169.09261076,0.00023865,120]
[426691157,1782746114000,-240.87596549,0.00014394,2]
[426691158,1782746167000,-152.11022705,0.00015299,2]
[426691159,1782746180000,-28.71163706,0.00015299,2]
[426691161,1782746233000,-151.0,0.00015913,2]
[426691162,1782746286000,-151.0,0.00017,2]
[426691163,1782746340000,-151.0,0.00017,2]
[426691171,1782746753000,-520.0,0.00013769,2]
[426691172,1782746766000,-520.0,0.00013769,2]
[426691173,1782746778000,-451.0,0.00013769,2]
[426691174,1782746790000,-451.0,0.00013769,2]
[426691175,1782746802000,-451.0,0.00013769,2]
[426691176,1782746815000,-451.0,0.00013769,2]
[426691177,1782746827000,-451.0,0.00013769,2]
[426691178,1782746839000,-451.0,0.00013769,2]
[426691179,1782746851000,-413.27,0.00013769,2]
[426691180,1782746904000,-208.22616717,0.00013105,2]
[426691181,1782746949000,-3752.98383283,0.00013105,2]
[426691182,1782746949000,-1656.59470517,0.00013174,2]
[426691185,1782746969000,2079.71,0.00012515,2]
[426691320,1782747039000,-166.66,0.0001385,2]
[426691318,1782747039000,-4159.27,0.00013819,2]
[426691315,1782747039000,-3961.21,0.00013725,2]
[426691311,1782747039000,-3961.21,0.00013449,2]
[426691305,1782747039000,-500.0,0.00013242,2]
[426691304,1782747039000,-500.0,0.00013242,2]
[426691307,1782747039000,-500.0,0.00013242,2]
[426691306,1782747039000,-500.0,0.00013242,2]
[426691310,1782747039000,-3961.21,0.0001338,2]
[426691303,1782747039000,-500.0,0.00013242,2]
[426691301,1782747039000,-500.0,0.00013242,2]
[426691302,1782747039000,-500.0,0.00013242,2]
[426691322,1782747039000,-150.0,0.00013868,2]
[426691309,1782747039000,-3961.21,0.00013311,2]
[426691293,1782747039000,-500.0,0.00013242,2]
[426691300,1782747039000,-500.0,0.00013242,2]
[426691295,1782747039000,-425.21739644,0.00013242,2]
[426691294,1782747039000,-500.0,0.00013242,2]
[426691287,1782747039000,-500.0,0.00013242,2]
[426691291,1782747039000,-500.0,0.00013242,2]
[426691317,1782747039000,-3961.21,0.00013794,2]
[426691289,1782747039000,-500.0,0.00013242,2]
[426691285,1782747039000,-500.0,0.00013242,2]
[426691299,1782747039000,-500.0,0.00013242,2]
[426691298,1782747039000,-500.0,0.00013242,2]
[426691296,1782747039000,-500.0,0.00013242,2]
[426691297,1782747039000,-500.0,0.00013242,2]
[426691284,1782747039000,-1402.61529483,0.00013174,2]
[426691283,1782747039000,-902.0,0.00013174,2]
[426691308,1782747039000,-3961.21,0.00013243,2]
[426691319,1782747039000,-2079.71,0.00013832,2]
[426691292,1782747039000,-500.0,0.00013242,2]
[426691316,1782747039000,-233.10994737,0.00013794,2]
[426691312,1782747039000,-3961.21,0.00013518,2]
[426691350,1782747039000,-1000.0,0.00014492,2]
[426691348,1782747039000,-4159.27,0.00014469,2]
[426691345,1782747039000,-150.0,0.00014432,2]
[426691343,1782747039000,-3961.21,0.00014415,2]
[426691346,1782747039000,-166.66,0.00014434,2]
[426691340,1782747039000,-3961.21,0.00014346,2]
[426691339,1782747039000,-4159.27,0.00014319,2]
[426691344,1782747039000,-4159.27,0.00014419,2]
[426691338,1782747039000,-3961.21,0.00014277,2]
[426691342,1782747039000,-4159.27,0.00014369,2]
[426691341,1782747039000,-189.05,0.00014349,2]
[426691347,1782747039000,-277.44,0.00014435,2]
[426691336,1782747039000,-4159.27,0.00014219,2]
[426691337,1782747039000,-4159.27,0.00014269,2]
[426691349,1782747039000,-3961.21,0.00014484,2]
[426691325,1782747039000,-3961.21,0.00013932,2]
[426691330,1782747039000,-3961.21,0.0001407,2]
[426691323,1782747039000,-4159.27,0.00013869,2]
[426691321,1782747039000,-3961.21,0.00013863,2]
[426691324,1782747039000,-4159.27,0.00013919,2]
[426691326,1782747039000,-4159.27,0.00013969,2]
[426691327,1782747039000,-3961.21,0.00014001,2]
[426691314,1782747039000,-3961.21,0.00013656,2]
[426691328,1782747039000,-4159.27,0.00014019,2]
[426691334,1782747039000,-4159.27,0.00014169,2]
[426691335,1782747039000,-3961.21,0.00014208,2]
[426691333,1782747039000,-166.66,0.00014142,2]
[426691313,1782747039000,-3961.21,0.00013587,2]
[426691332,1782747039000,-3961.21,0.00014139,2]
[426691331,1782747039000,-4159.27,0.00014119,2]
[426691329,1782747039000,-4159.27,0.00014069,2]
[426691392,1782747040000,-545.51288645,0.00016438,2]
[426691381,1782747040000,-158.50514877,0.00016172,2]
[426691380,1782747040000,-150.0,0.00016069,2]
[426691411,1782747040000,-150.0,0.00017,2]
[426691385,1782747040000,-522.37906276,0.00016172,2]
[426691391,1782747040000,-277.44,0.0001624,2]
[426691388,1782747040000,-180.51572187,0.00016172,2]
[426691389,1782747040000,-500.0,0.00016172,2]
[426691390,1782747040000,-433.0,0.00016212,2]
[426691387,1782747040000,-500.0,0.00016172,2]
[426691382,1782747040000,-177.0383807,0.00016172,2]
[426691384,1782747040000,-500.0,0.00016172,2]
[426691400,1782747040000,-151.0,0.00016915,2]
[426691397,1782747040000,-166.66,0.00016466,2]
[426691396,1782747040000,-190.0,0.00016438,2]
[426691394,1782747040000,-500.0,0.00016438,2]
[426691398,1782747040000,-158.95132207,0.00016915,2]
[426691401,1782747040000,-150.0,0.00016915,2]
[426691399,1782747040000,-151.0,0.00016915,2]
[426691403,1782747040000,-150.0,0.0001692,2]
[426691413,1782747040000,-896.0,0.00017,2]
[426691417,1782747040000,-151.0,0.00017,2]
[426691415,1782747040000,-918.0,0.00017,2]
[426691402,1782747040000,-152.0,0.00016916,2]
[426691376,1782747040000,-4159.27,0.00015169,2]
[426691395,1782747040000,-500.0,0.00016438,2]
[426691379,1782747040000,-168.88,0.00016011,2]
[426691364,1782747040000,-4159.27,0.00014919,2]
[426691377,1782747040000,-166.66,0.00015308,2]
[426691353,1782747040000,-500.0,0.00014494,2]
[426691357,1782747040000,-4159.27,0.00014619,2]
[426691358,1782747040000,-4159.27,0.00014669,2]
[426691359,1782747040000,-4159.27,0.00014719,2]
[426691351,1782747040000,-500.0,0.00014494,2]
[426691354,1782747040000,-4159.27,0.00014519,2]
[426691355,1782747040000,-4159.27,0.00014569,2]
[426691352,1782747040000,-500.0,0.00014494,2]
[426691356,1782747040000,-276.61,0.00014599,2]
[426691371,1782747040000,-332.36496546,0.00014999,2]
[426691361,1782747040000,-4159.27,0.00014769,2]
[426691360,1782747040000,-166.66,0.00014725,2]
[426691363,1782747040000,-4159.27,0.00014869,2]
[426691362,1782747040000,-4159.27,0.00014819,2]
[426691365,1782747040000,-4159.27,0.00014969,2]
[426691367,1782747040000,-500.0,0.00014999,2]
[426691369,1782747040000,-500.0,0.00014999,2]
[426691370,1782747040000,-500.0,0.00014999,2]
[426691366,1782747040000,-255.0,0.00014992,2]
[426691368,1782747040000,-500.0,0.00014999,2]
[426691372,1782747040000,-166.66,0.00015017,2]
[426691374,1782747040000,-4159.27,0.00015069,2]
[426691373,1782747040000,-4159.27,0.00015019,2]
[426691375,1782747040000,-4159.27,0.00015119,2]
[426691378,1782747040000,-199.16248043,0.00016,2]
[426691383,1782747040000,-500.0,0.00016172,2]
[426691410,1782747040000,-891.0,0.00017,2]
[426691386,1782747040000,-500.0,0.00016172,2]
[426691408,1782747040000,-152.0,0.00017,2]
[426691451,1782747040000,-502.0,0.00018881,3]
[426691450,1782747040000,-396.28,0.00018704,2]
[426691453,1782747040000,-500.0,0.00019315,2]
[426691452,1782747040000,-166.66,0.00019184,2]
[426691454,1782747040000,-502.0,0.00019821,4]
[426691455,1782747040000,-277.44,0.00019848,2]
[426691457,1782747040000,-151.0,0.0002,2]
[426691458,1782747040000,-390.0,0.0002,2]
[426691456,1782747040000,-158.0,0.0002,2]
[426691459,1782747040000,-398.0,0.0002,2]
[426691460,1782747040000,-5436.0,0.0002,10]
[426691462,1782747040000,-8790.64,0.00020145,2]
[426691465,1782747040000,-6828.49,0.00020951,2]
[426691469,1782747040000,-2632.32,0.00020951,2]
[426691470,1782747040000,-4297.2,0.00020951,2]
[426691463,1782747040000,-502.0,0.00020761,5]
[426691473,1782747040000,-390.0,0.00021,2]
[426691468,1782747040000,-5731.92,0.00020951,2]
[426691464,1782747040000,-150.99,0.00020951,2]
[426691466,1782747040000,-515.88,0.00020951,2]
[426691472,1782747040000,-151.0,0.00021,2]
[426691471,1782747040000,-158.0,0.00021,2]
[426691474,1782747040000,-398.0,0.00021,2]
[426691475,1782747040000,-915.0,0.00021228,2]
[426691409,1782747040000,-150.0,0.00017,2]
[426691461,1782747040000,-29999.99,0.00020145,2]
[426691446,1782747040000,-502.0,0.0001794,2]
[426691467,1782747040000,-1954.25,0.00020951,2]
[426691448,1782747040000,-166.66,0.00018278,2]
[426691443,1782747040000,-886.0,0.00017406,2]
[426691407,1782747040000,-150.0,0.00017,2]
[426691405,1782747040000,-2500.0,0.00016974,2]
[426691404,1782747040000,-152.0,0.00016936,2]
[426691421,1782747040000,-435.36287597,0.00017,2]
[426691419,1782747040000,-902.0,0.00017,2]
[426691427,1782747040000,-906.0,0.00017001,2]
[426691425,1782747040000,-502.0,0.00017,2]
[426691423,1782747040000,-151.0,0.00017,2]
[426691437,1782747040000,-889.0,0.00017079,2]
[426691431,1782747040000,-889.0,0.00017002,2]
[426691429,1782747040000,-902.0,0.00017001,2]
[426691434,1782747040000,-901.0,0.00017014,2]
[426691406,1782747040000,-151.0,0.00017,2]
[426691432,1782747040000,-890.0,0.00017005,2]
[426691433,1782747040000,-883.0,0.00017005,2]
[426691440,1782747040000,-396.28,0.00017334,2]
[426691444,1782747040000,-331.0,0.00017516,2]
[426691439,1782747040000,-5615.4629,0.00017306,2]
[426691442,1782747040000,-901.0,0.00017406,2]
[426691445,1782747040000,-191.973955,0.00017808,2]
[426691449,1782747040000,-168.88,0.00018679,2]
[426691441,1782747040000,-166.66,0.00017372,2]
[426691438,1782747040000,-885.0,0.00017188,2]
[426691436,1782747040000,-910.0,0.00017033,2]
[426691435,1782747040000,-915.0,0.00017014,2]
[426691447,1782747040000,-277.44,0.00018044,2]
[426691497,1782747041000,-295.39753565,0.00022713,30]
[426691500,1782747041000,-398.0,0.00023,2]
[426691503,1782747041000,-2478.23746716,0.00023182,2]
[426691501,1782747041000,-150.0,0.00023014,2]
[426691502,1782747041000,-200.0,0.00023091,2]
[426691504,1782747041000,-253.1978877,0.00023282,30]
[426691507,1782747041000,-171.65686764,0.00023665,2]
[426691506,1782747041000,-400.0,0.000236,8]
[426691505,1782747041000,-502.0,0.00023582,8]
[426691509,1782747041000,-900.0,0.000237,8]
[426691516,1782747041000,-683196.81466234,0.00023765,120]
[426691511,1782747041000,-500.0,0.00023765,2]
[426691514,1782747041000,-500.0,0.00023765,2]
[426691513,1782747041000,-500.0,0.00023765,2]
[426691517,1782747041000,-22776.73486738,0.00023765,120]
[426691512,1782747041000,-500.0,0.00023765,2]
[426691515,1782747041000,-500.0,0.00023765,2]
[426691518,1782747041000,-33980.28008773,0.00023765,120]
[426691499,1782747041000,-390.0,0.00023,2]
[426691520,1782747041000,-537.35661732,0.00023765,120]
[426691510,1782747041000,-500.0,0.00023765,2]
[426691508,1782747041000,-13658.64786759,0.00023665,2]
[426691483,1782747041000,-150.0,0.00021918,2]
[426691496,1782747041000,-502.0,0.00022642,7]
[426691522,1782747041000,-6407.85024586,0.00023765,120]
[426691476,1782747041000,-893.39,0.00021342,2]
[426691477,1782747041000,-168.88,0.00021348,2]
[426691479,1782747041000,-502.0,0.00021701,6]
[426691481,1782747041000,-500.0,0.00021917,2]
[426691478,1782747041000,-277.44,0.00021653,2]
[426691484,1782747041000,-158.0,0.00022,2]
[426691482,1782747041000,-5000.0,0.00021918,2]
[426691480,1782747041000,-295.39753565,0.00021891,10]
[426691498,1782747041000,-158.0,0.00023,2]
[426691485,1782747041000,-153.0,0.00022,2]
[426691487,1782747041000,-398.0,0.00022,2]
[426691489,1782747041000,-906.0,0.00022347,2]
[426691490,1782747041000,-917.07,0.00022466,2]